bitfinex/quotes_ETHUSD_20251120
["timestamp","ask_amount","ask_price","bid_price","bid_amount"]
[1763616814137,0.111,3037.1,3037.0,0.001]
[1763616814289,0.5681,3037.1,3037.0,0.001]
[1763616814495,1.0241,3037.1,3037.0,0.001]
[1763616818179,0.5681,3037.1,3037.0,0.001]
[1763616818390,0.111,3037.1,3037.0,0.4673]
[1763616818549,1.38379264,3037.5,3037.0,0.4673]
[1763616818550,1.01885802,3037.4,3037.0,0.4673]
[1763616818750,0.41935204,3037.3,3037.0,0.4673]
[1763616819060,0.90699264,3037.6,3037.1,3.35201466]
[1763616819061,0.30835204,3037.4,3037.1,3.35201466]
[1763616819272,0.111,3037.3,3037.2,0.38035147]
[1763616819468,0.111,3037.4,3037.2,0.83085147]
[1763616819980,0.111,3037.4,3037.3,0.4663]
[1763616820538,0.111,3037.4,3037.0,3.29370832]
[1763616820779,0.111,3037.4,3037.3,0.4663]
[1763616821966,0.111,3037.4,3037.3,0.9168]
[1763616822281,0.111,3037.4,3037.3,0.4663]
[1763616822640,0.5622,3037.4,3037.1,3.29257899]
[1763616823574,0.5622,3037.4,3037.0,3.29372308]
[1763616823778,0.5622,3037.4,3037.0,4.4538659]
[1763616823965,0.111,3037.4,3037.0,7.29608898]
[1763616824160,0.111,3037.4,3037.3,0.4663]
[1763616824683,0.41947447,3037.6,3037.3,0.9168]
[1763616824875,0.41947447,3037.6,3037.5,0.4663]
[1763616825192,0.41947447,3037.7,3037.5,0.4663]
[1763616825565,0.41947447,3037.7,3037.6,0.4663]
[1763616825972,0.30847447,3037.7,3037.6,0.4663]
[1763616826280,0.41947447,3037.7,3037.4,0.4505]
[1763616826609,0.41947447,3037.7,3037.3,3.29236382]
[1763616826771,0.41947447,3037.7,3037.3,3.74286382]
[1763616827302,0.41947447,3037.7,3037.6,0.4663]
[1763616827806,0.87067447,3037.7,3037.2,3.20621532]
[1763616828099,0.30847447,3037.6,3037.2,7.54380666]
[1763616828291,0.30847447,3037.6,3037.3,0.4505]
[1763616828679,0.41947447,3037.7,3037.3,0.4505]
[1763616830305,0.41947447,3037.7,3037.3,3.74284438]
[1763616830799,0.42147447,3037.7,3037.3,3.29234438]
[1763616831108,0.89827447,3037.7,3037.3,3.29234438]
[1763616831282,0.30847447,3037.6,3037.3,3.29234438]
[1763616831482,0.30847447,3037.6,3037.2,4.337587]
[1763616831883,0.30847447,3037.6,3037.2,4.788087]
[1763616832078,0.30847447,3037.6,3037.2,4.337587]
[1763616832285,0.30847447,3037.6,3037.5,0.4663]
[1763616832605,0.4768,3037.5,3037.0,0.001]
[1763616832907,0.4768,3037.5,3037.0,3.29369412]
[1763616833083,0.4768,3037.5,3037.0,3.74419412]
[1763616834606,0.113,3037.7,3037.1,0.4505]
[1763616834910,3.71350421,3037.7,3037.1,0.4505]
[1763616835106,0.30845827,3037.6,3037.1,0.4505]
[1763616838225,0.78525827,3037.6,3037.1,3.74306635]
[1763616838512,4.07733265,3037.6,3037.1,3.29261202]
[1763616838714,3.76887438,3037.6,3037.1,3.29261202]
[1763616838881,0.4768,3037.5,3037.1,3.29261202]
[1763616839979,0.30846429,3037.6,3037.1,3.74311202]
[1763616840622,0.30846429,3037.6,3037.2,0.4505]
[1763616840826,0.111,3037.5,3037.2,0.4505]
[1763616841141,0.4788,3037.7,3037.3,2.79084484]
[1763616841142,0.002,3037.7,3037.3,2.79084484]
[1763616841298,0.002,3037.7,3037.6,0.4663]
[1763616841799,0.002,3037.7,3037.6,0.9168]
[1763616842005,0.002,3037.7,3037.6,0.4663]
[1763616842327,0.002,3037.7,3037.6,0.9168]
[1763616842526,0.002,3037.7,3037.6,4.57963716]
[1763616845020,0.002,3037.7,3037.6,7.370482]
[1763616845729,0.002,3037.7,3037.6,4.57963716]
[1763616847319,0.002,3037.7,3037.6,4.69063716]
[1763616849151,0.002,3037.7,3037.6,5.5976298]
[1763616849453,0.002,3037.7,3037.6,12.27193783]
[1763616849647,0.002,3037.7,3037.6,12.26397864]
[1763616850049,0.002,3037.7,3037.6,9.4731338]
[1763616851513,0.002,3037.7,3037.6,6.0031338]
[1763616852124,0.002,3037.7,3037.6,8.79397864]
[1763616852725,0.002,3037.7,3037.6,8.72671864]
[1763616854229,0.002,3037.7,3037.6,12.24671864]
[1763616856124,0.002,3038.2,3038.1,10.61974055]
[1763616856352,0.002,3038.2,3038.1,10.61179368]
[1763616856651,0.002,3038.2,3038.1,10.74349414]
[1763616856951,0.002,3038.2,3038.1,11.72625129]
[1763616857151,0.002,3038.2,3038.1,15.01778218]
[1763616859226,0.002,3038.2,3038.1,15.92477482]
[1763616860657,0.002,3038.4,3038.3,0.405504]
[1763616860829,0.002,3038.4,3038.3,7.34708632]
[1763616861153,0.002,3038.4,3038.3,8.1836508]
[1763616861327,0.002,3038.4,3038.3,11.47496502]
[1763616863956,0.002,3038.4,3038.3,11.58596502]
[1763616864731,0.002,3038.4,3038.3,5.02197134]
[1763616865053,0.002,3038.4,3038.3,7.81281618]
[1763616865226,0.002,3038.4,3038.3,11.06946102]
[1763616866729,0.002,3038.4,3038.3,10.60366102]
[1763616867123,0.002,3038.4,3038.3,11.06946102]
[1763616867653,0.002,3038.4,3038.3,10.60366102]
[1763616867860,0.002,3038.4,3038.3,11.08366102]
[1763616868025,0.002,3038.4,3038.3,10.60366102]
[1763616868224,0.002,3038.4,3038.3,11.19466102]
[1763616868865,0.002,3038.4,3038.3,15.07016502]
[1763616870458,0.002,3038.4,3038.3,12.27932018]
[1763616870671,0.002,3038.4,3038.3,5.02197134]
[1763616870875,0.4818,3038.4,3038.3,6.9891517]
[1763616871463,0.4818,3038.4,3038.3,6.08215906]
[1763616871663,0.4818,3038.4,3038.2,3.29142162]
[1763616871664,0.9781,3038.4,3038.2,2.79084484]
[1763616871844,0.2703,3038.3,3038.2,2.79084484]
[1763616872044,0.7666,3038.3,3038.2,2.79084484]
[1763616872468,0.2703,3038.3,3038.2,2.79084484]
[1763616873151,0.002,3038.4,3038.2,4.06862109]
[1763616873749,0.002,3038.4,3038.3,3.29131422]
[1763616874293,0.002,3038.4,3038.3,3.76421422]
[1763616874454,0.002,3038.4,3038.3,3.77215445]
[1763616874646,0.4818,3038.4,3038.3,3.29131422]
[1763616874850,0.9781,3038.4,3038.3,3.29131422]
[1763616876286,0.9781,3038.4,3038.2,2.79084484]
[1763616876461,0.7666,3038.3,3038.2,2.79084484]
[1763616878385,0.7666,3038.3,3038.2,6.08226739]
[1763616878679,0.7666,3038.3,3038.2,7.11044639]
[1763616879893,0.2703,3038.3,3038.2,7.11044639]
[1763616880779,0.002,3038.4,3038.2,10.88556894]
[1763616881582,0.002,3038.4,3038.3,3.47]
[1763616881773,0.002,3038.4,3038.2,10.88556894]
[1763616883385,0.002,3038.4,3038.3,1.99210916]
[1763616884394,0.002,3038.4,3038.3,1.50840916]
[1763616884395,0.4809,3038.4,3038.3,1.50840916]
[1763616884550,0.9553,3038.4,3038.3,1.50840916]
[1763616884883,0.9553,3038.4,3038.2,10.40186894]
[1763616885084,0.293,3038.3,3038.2,7.11044639]
[1763616885480,0.002,3038.4,3038.2,10.88556894]
[1763616885716,0.002,3038.4,3038.3,0.00794144]
[1763616885918,0.002,3038.4,3038.2,10.40186894]
[1763616886123,0.002,3038.4,3038.3,1.46013916]
[1763616886724,0.4809,3038.4,3038.3,1.46013916]
[1763616886904,0.9553,3038.4,3038.3,1.46013916]
[1763616888528,0.9553,3038.4,3038.3,4.75145338]
[1763616888729,0.9553,3038.4,3038.3,3.29131422]
[1763616889111,0.4809,3038.4,3038.3,3.29131422]
[1763616890226,0.002,3038.4,3038.3,3.29131422]
[1763616890529,0.002,3038.4,3038.3,3.77501422]
[1763616890699,0.002,3038.4,3038.3,4.93249237]
[1763616891297,0.002,3038.4,3038.3,4.44879237]
[1763616893031,0.002,3038.4,3038.3,4.93249237]
[1763616894355,0.002,3038.4,3038.3,4.9404326]
[1763616894554,0.002,3038.4,3038.3,6.42202524]
[1763616894742,0.002,3038.4,3038.3,6.41408501]
[1763616899462,0.002,3038.4,3038.3,5.95048501]
[1763616900551,0.9553,3038.4,3038.3,5.35578501]
[1763616900769,0.9553,3038.4,3038.3,3.29131422]
[1763616909895,0.002,3038.4,3038.3,3.77941422]
[1763616910078,0.002,3038.4,3038.3,3.78735445]
[1763616910687,0.002,3038.4,3038.3,9.05895109]
[1763616910892,0.002,3038.4,3038.3,10.61592343]
[1763616915490,0.9303,3038.4,3038.3,5.76321943]
[1763616915690,0.9303,3038.4,3038.3,4.30930686]
[1763616916275,0.459,3038.4,3038.3,4.30930686]
[1763616916607,0.9303,3038.4,3038.3,4.19830686]
[1763616917412,0.9303,3038.4,3038.3,4.9584798]
[1763616917872,0.9303,3038.4,3038.3,4.05148716]
[1763616918076,0.9303,3038.4,3038.3,3.29131422]
[1763616920100,0.9303,3038.4,3038.2,3.29140365]
[1763616920298,0.7879,3038.3,3038.2,3.29140365]
[1763616921271,0.7879,3038.3,3038.1,0.001]
[1763616921512,0.9269,3038.2,3038.1,0.001]
[1763616922070,4.52643919,3038.2,3038.1,0.001]
[1763616922381,1.69629264,3038.1,3037.8,0.001]
[1763616922576,3.77755205,3037.9,3037.8,0.001]
[1763616922781,4.08566869,3037.9,3037.8,0.001]
[1763616923088,5.11446482,3037.9,3037.8,0.001]
[1763616923911,8.4062124,3037.9,3037.8,0.001]
[1763616925193,8.09809576,3037.9,3037.8,0.001]
[1763616928714,4.96134371,3037.9,3037.8,0.001]
[1763616928909,1.66959613,3037.9,3037.8,0.001]
[1763616929097,1.2231,3037.9,3037.8,0.001]
[1763616931714,1.1121,3037.9,3037.8,0.001]
[1763616932504,0.4543,3037.9,3037.8,0.001]
[1763616932709,0.9087,3037.9,3037.8,0.001]
[1763616932907,0.4543,3037.9,3037.8,0.001]
[1763616933112,0.9087,3037.9,3037.8,0.001]
[1763616935434,0.1841,3038.2,3037.8,0.4935]
[1763616935600,0.1841,3038.2,3037.8,0.85662521]
[1763616935903,0.4631,3037.9,3037.8,0.36412521]
[1763616936110,0.6385,3038.2,3037.8,0.001]
[1763616936330,0.4544,3038.1,3037.8,0.001]
[1763616936629,0.4631,3037.9,3037.8,0.001]
[1763616936831,0.4544,3038.1,3037.8,0.001]
[1763616937694,0.1841,3038.2,3037.8,0.001]
[1763616938098,0.6605,3038.2,3037.8,0.001]
[1763616938727,0.002,3038.4,3037.8,3.13775205]
[1763616938916,0.002,3038.4,3037.8,3.61685205]
[1763616939118,0.002,3038.4,3037.9,0.36178521]
[1763616939523,0.002,3038.4,3038.3,0.4771]
[1763616939709,0.002,3038.4,3038.3,3.76841422]
[1763616941301,0.002,3038.4,3038.3,3.29131422]
[1763616941302,0.4666,3038.4,3038.3,3.29131422]
[1763616941503,0.943,3038.4,3038.3,3.29131422]
[1763616941904,0.943,3038.4,3038.2,3.2913888]
[1763616942133,0.4764,3038.3,3038.2,3.2913888]
[1763616942339,0.941,3038.3,3038.2,3.2913888]
[1763616942718,0.941,3038.3,3037.8,0.001]
[1763616942915,0.3154,3038.1,3037.9,0.65858641]
[1763616943654,0.4764,3038.2,3037.9,0.65858641]
[1763616943950,0.002,3038.4,3037.9,0.65858641]
[1763616944152,0.4784,3038.4,3037.9,0.65858641]
[1763616944541,0.002,3038.4,3037.9,1.13768641]
[1763616944738,0.002,3038.4,3038.1,6.58306178]
[1763616945052,0.002,3038.4,3038.3,0.4771]
[1763616946117,0.4666,3038.4,3038.1,6.58306178]
[1763616946315,0.943,3038.4,3038.1,6.58306178]
[1763616946744,0.3154,3038.2,3038.0,3.29163546]
[1763616947251,0.002,3038.4,3038.1,0.4771]
[1763616947452,0.002,3038.4,3038.3,0.4771]
[1763616948256,0.4666,3038.4,3038.0,7.62125364]
[1763616948752,0.943,3038.4,3038.0,7.62125364]
[1763616949155,0.4666,3038.4,3038.0,7.62125364]
[1763616949360,0.3154,3038.1,3038.0,4.32961441]
[1763616949525,0.4764,3038.3,3038.0,7.62125364]
[1763616949935,0.4646,3038.1,3038.0,3.29163546]
[1763616952035,0.4784,3038.3,3038.0,6.58327469]
[1763616952960,0.4646,3038.1,3037.8,0.001]
[1763616953152,0.3154,3038.0,3037.8,0.001]
[1763616953461,0.4631,3037.9,3037.8,0.001]
[1763616954471,0.4764,3038.2,3037.8,0.001]
[1763616955736,0.4764,3038.2,3037.8,3.29285594]
[1763616955938,0.4764,3038.2,3037.8,6.58471188]
[1763616957075,0.6514,3037.9,3037.8,0.001]
[1763616957670,0.4784,3038.3,3037.8,0.4781]
[1763616957869,0.4764,3038.2,3037.9,6.58349516]
[1763616959638,0.002,3038.3,3037.9,6.58349516]
[1763616959838,0.4646,3038.0,3037.8,6.58471188]
[1763616960071,0.4764,3038.2,3037.8,6.58471188]
[1763616961880,0.4764,3038.2,3037.8,0.001]
[1763616963985,0.6514,3037.9,3037.8,0.001]
[1763616964299,1.1278,3037.9,3037.8,0.001]
[1763616966300,4.41954758,3037.9,3037.8,0.001]
[1763616966461,4.72738239,3037.9,3037.8,0.001]
[1763616969196,4.41954758,3037.9,3037.8,0.001]
[1763616969693,7.20854946,3037.9,3037.8,0.001]
[1763616969900,7.51597308,3037.9,3037.8,0.001]
[1763616970203,8.60783453,3037.9,3037.8,0.001]
[1763616972201,8.30041091,3037.9,3037.8,0.001]
[1763616972899,8.60759095,3037.9,3037.8,0.001]
[1763616978512,5.81858907,3037.9,3037.8,0.001]
[1763616979007,2.13356145,3037.9,3037.8,0.001]
[1763616979212,4.33344758,3037.9,3037.8,0.001]
[1763616980104,4.64106227,3037.9,3037.8,0.001]
[1763616982531,4.33344758,3037.9,3037.8,0.001]
[1763616983125,0.5756,3037.9,3037.8,0.001]
[1763616983498,1.0417,3037.9,3037.8,0.001]
[1763616983699,1.4750373,3037.9,3037.8,0.001]
[1763616986936,1.3640373,3037.9,3037.8,0.001]
[1763616987135,1.7832278,3037.9,3037.8,0.001]
[1763616987638,5.07497538,3037.9,3037.8,0.001]
[1763616990736,5.11612222,3037.9,3037.8,0.001]
[1763616991443,5.82657739,3037.9,3037.8,0.001]
[1763616991612,5.78543055,3037.9,3037.8,0.001]
[1763616992749,5.78573178,3037.9,3037.8,0.001]
[1763616993353,5.82687862,3037.9,3037.8,0.001]
[1763616995160,9.52287314,3037.9,3037.8,0.001]
[1763616995345,9.4817263,3037.9,3037.8,0.001]
[1763616995550,10.37082171,3037.9,3037.8,0.001]
[1763616996942,9.8872303,3037.9,3037.8,0.001]
[1763616998269,10.7758545,3037.9,3037.8,0.001]
[1763616998769,10.77597807,3037.9,3037.8,0.001]
[1763616999348,9.88735387,3037.9,3037.8,0.001]
[1763616999537,1.31249664,3037.8,3036.1,4.89399264]
[1763616999737,2.78900188,3037.5,3036.4,3.92521971]
[1763616999957,7.0041942,3037.4,3036.4,6.58674746]
[1763617000148,0.3086153,3037.3,3036.4,6.58674746]
[1763617000353,0.3086153,3037.3,3036.4,3.29337373]
[1763617000354,3.56891718,3037.3,3036.4,3.29337373]
[1763617000558,0.3086153,3037.2,3036.4,3.29337373]
[1763617000744,0.4713,3037.2,3036.4,7.20747502]
[1763617000949,0.77983817,3037.2,3036.4,7.20747502]
[1763617001150,0.4713,3037.2,3036.4,7.20747502]
[1763617001546,0.4713,3037.2,3036.4,7.32927502]
[1763617001869,0.30847925,3037.3,3036.5,0.1218]
[1763617002073,3.29243831,3037.3,3036.6,0.7329275]
[1763617002367,0.30847925,3037.2,3036.6,0.7329275]
[1763617002965,3.60101402,3037.2,3036.6,4.02600298]
[1763617003173,3.76383477,3037.2,3037.1,0.001]
[1763617003371,4.07221553,3037.2,3037.1,0.001]
[1763617003572,4.55431553,3037.2,3037.1,0.001]
[1763617004368,3.40333777,3037.4,3037.1,0.001]
[1763617004539,0.30827052,3037.3,3037.1,0.001]
[1763617004737,0.77957052,3037.3,3037.1,0.001]
[1763617005042,3.76370225,3037.3,3037.1,0.001]
[1763617005365,3.76369957,3037.3,3037.1,0.001]
[1763617005873,0.4821,3037.2,3037.1,0.001]
[1763617006374,0.9534,3037.2,3037.1,0.001]
[1763617006559,1.26145584,3037.2,3037.1,0.001]
[1763617007369,5.34967671,3037.2,3037.1,0.001]
[1763617007569,5.39083303,3037.2,3037.1,0.001]
[1763617008479,5.34967671,3037.2,3037.1,0.001]
[1763617014819,5.75518071,3037.2,3037.1,0.001]
[1763617014963,10.55346535,3037.2,3037.1,0.001]
[1763617015167,10.51230903,3037.2,3037.1,0.001]
[1763617016465,11.39931985,3037.2,3037.1,0.001]
[1763617016691,11.39931985,3037.2,3035.1,0.1922]
[1763617016692,23.81730478,3037.2,3035.1,0.1922]
[1763617016999,0.90699264,3036.3,3035.2,3.77097337]
[1763617017199,0.111,3036.2,3035.2,3.77097337]
[1763617017387,0.7643,3036.2,3035.3,0.1218]
[1763617017586,0.4713,3036.1,3035.3,0.1218]
[1763617017783,0.4713,3036.1,3035.4,0.37709734]
[1763617019102,3.76503856,3036.1,3035.4,3.79333909]
[1763617019766,0.4713,3036.0,3035.4,0.37709734]
[1763617019969,0.4713,3036.0,3035.1,6.90350577]
[1763617020188,0.4713,3036.0,3035.1,3.60971918]
[1763617020387,0.4713,3036.0,3035.1,6.90450353]
[1763617020587,0.4713,3036.0,3035.1,3.60971918]
[1763617020794,3.14104269,3035.9,3035.1,0.1932]
[1763617021030,8.0773419,3035.8,3035.1,0.1932]
[1763617021200,0.4821,3035.2,3035.1,0.001]
[1763617021400,0.5931,3035.2,3035.1,0.001]
[1763617023590,0.111,3035.2,3035.1,0.001]
[1763617024193,0.111,3035.2,3035.1,0.1228]
[1763617025013,0.111,3035.2,3035.1,3.53938024]
[1763617027377,0.04117802,3035.6,3035.1,6.83416459]
[1763617027578,0.111,3035.4,3035.1,6.83416459]
[1763617028077,0.111,3035.4,3035.3,0.1218]
[1763617028794,0.111,3035.4,3035.3,0.2436]
[1763617028998,0.111,3035.6,3035.3,0.2436]
[1763617029406,0.111,3035.6,3035.5,0.1218]
[1763617032519,0.5948,3035.6,3035.1,0.001]
[1763617032742,0.04117937,3035.5,3035.1,3.41755872]
[1763617032897,0.111,3035.6,3035.5,0.1218]
[1763617033095,0.111,3035.6,3035.1,3.29575872]
[1763617034123,0.111,3035.6,3035.1,0.001]
[1763617034124,0.4747,3035.5,3035.1,0.001]
[1763617034617,0.4838,3035.2,3035.1,0.001]
[1763617034787,0.5948,3035.2,3035.1,0.001]
[1763617034988,1.0695,3035.2,3035.1,0.001]
[1763617035184,1.11068344,3035.2,3035.1,0.001]
[1763617035395,1.53585605,3035.2,3035.1,0.001]
[1763617035621,1.90017661,3035.2,3035.1,0.001]
[1763617035818,6.23378183,3035.2,3035.1,0.001]
[1763617036782,6.27496527,3035.2,3035.1,0.001]
[1763617037394,6.53960555,3035.2,3035.1,0.001]
[1763617037819,9.68064824,3035.2,3035.1,0.001]
[1763617038497,6.53960555,3035.2,3035.1,0.001]
[1763617038920,6.23378183,3035.2,3035.1,0.001]
[1763617039302,6.53961419,3035.2,3035.1,0.001]
[1763617041207,6.23378183,3035.2,3035.1,0.001]
[1763617041411,6.53971546,3035.2,3035.1,0.001]
[1763617041825,6.5808989,3035.2,3035.1,0.001]
[1763617042711,2.65933966,3035.2,3035.1,0.001]
[1763617042901,6.53971546,3035.2,3035.1,0.001]
[1763617044323,2.36483566,3035.2,3035.1,0.001]
[1763617044509,1.01799264,3035.2,3035.1,0.1228]
[1763617045316,1.32463619,3035.2,3035.1,0.001]
[1763617045632,5.10311199,3035.2,3035.1,0.001]
[1763617045929,1.80843619,3035.2,3035.1,0.001]
[1763617046593,1.32463619,3035.2,3035.1,0.001]
[1763617047227,1.84722269,3035.2,3035.1,0.001]
[1763617047923,1.32463619,3035.2,3035.1,0.001]
[1763617048825,5.11381199,3035.2,3035.1,0.001]
[1763617049028,1.32463619,3035.2,3035.1,0.001]
[1763617049534,1.86031963,3035.2,3035.1,0.001]
[1763617050300,5.15499543,3035.2,3035.1,0.001]
[1763617050697,1.86031963,3035.2,3035.1,0.001]
[1763617051046,1.36581963,3035.2,3035.1,0.001]
[1763617051236,0.45882699,3035.2,3035.1,0.001]
[1763617051407,0.45882699,3035.2,3035.1,0.1228]
[1763617051408,0.15218344,3035.2,3035.1,0.1228]
[1763617051591,0.111,3035.2,3035.1,0.1228]
[1763617051993,1.18051415,3036.0,3035.1,3.38564269]
[1763617052230,0.41828887,3035.7,3035.2,0.1218]
[1763617052433,0.41828887,3035.7,3035.2,0.2436]
[1763617052637,0.111,3035.7,3035.6,0.1218]
[1763617052793,0.41828887,3035.7,3035.6,0.1218]
[1763617052996,0.111,3035.7,3035.3,0.1218]
[1763617053234,0.03316881,3035.6,3035.3,3.41635543]
[1763617053601,0.03316881,3035.6,3035.5,0.1218]
[1763617054111,0.98776881,3035.6,3035.2,3.29466526]
[1763617054725,0.52766881,3035.6,3035.2,3.29466526]
[1763617054963,0.52766881,3035.6,3035.1,3.29578435]
[1763617055265,0.52766881,3035.6,3035.1,3.41758435]
[1763617055469,0.03316881,3035.6,3035.1,3.41758435]
[1763617055861,0.03316881,3035.6,3035.1,7.3837147]
[1763617056169,0.03316881,3035.6,3035.2,0.1218]
[1763617056748,0.03316881,3035.6,3035.1,3.96713035]
[1763617056970,0.03316881,3035.6,3035.1,4.08893035]
[1763617057277,0.49326881,3035.6,3035.1,3.96713035]
[1763617057462,0.03316881,3035.6,3035.1,7.2619147]
[1763617057664,0.04117802,3035.6,3035.1,7.3837147]
[1763617057972,0.04117802,3035.6,3035.2,0.1218]
[1763617059062,0.04117802,3035.6,3035.3,3.29456725]
[1763617059690,0.111,3035.7,3035.5,0.1218]
[1763617061681,0.484,3036.0,3035.5,0.1218]
[1763617061861,0.595,3035.9,3035.5,0.1218]
[1763617064174,3.88896158,3035.9,3035.3,3.29456725]
[1763617064593,0.484,3035.8,3035.3,3.29456725]
[1763617065702,0.111,3035.7,3035.3,3.29456725]
[1763617066196,0.111,3035.7,3035.3,3.41636725]
[1763617066400,0.111,3035.7,3035.3,3.29456725]
[1763617066577,0.04117802,3035.6,3035.3,3.29456725]
[1763617067787,0.04117802,3035.6,3035.5,0.1218]
[1763617067968,0.111,3035.7,3035.5,0.1218]
[1763617070504,0.595,3035.7,3035.3,3.29456725]
[1763617071600,0.595,3035.7,3035.3,3.29456725]
[1763617071900,0.4732,3035.4,3035.1,0.001]
[1763617072100,7.18333998,3035.7,3035.1,0.001]
[1763617072101,0.4732,3035.2,3035.1,0.001]
[1763617072894,0.9572,3035.2,3035.1,0.001]
[1763617073206,0.111,3035.3,3035.1,0.1228]
[1763617073722,0.111,3035.3,3035.1,0.001]
[1763617073904,0.595,3035.3,3035.1,0.001]
[1763617074530,0.4732,3035.2,3035.1,0.001]
[1763617075719,0.595,3035.3,3035.1,0.001]
[1763617076421,0.111,3035.3,3035.1,0.001]
[1763617077597,0.4732,3035.2,3035.1,0.001]
[1763617077905,4.6573798,3035.2,3035.1,0.001]
[1763617078223,5.4636671,3035.2,3035.1,0.001]
[1763617078408,6.45306895,3035.2,3035.1,0.001]
[1763617079620,3.15839315,3035.2,3035.1,0.001]
[1763617080131,2.1689913,3035.2,3035.1,0.001]
[1763617080427,0.1319172,3035.2,3035.1,0.001]
[1763617080631,0.111,3035.2,3035.1,0.1228]
[1763617081710,0.111,3035.2,3035.1,0.001]
[1763617084858,0.111,3035.2,3035.1,0.1228]
[1763617086335,0.111,3035.2,3035.1,3.41758435]
[1763617086513,0.30756787,3035.5,3035.1,3.41758435]
[1763617086717,0.111,3035.4,3035.1,0.1228]
[1763617087223,0.111,3035.4,3035.1,3.4175761]
[1763617087831,0.111,3035.4,3035.1,0.1228]
[1763617088018,0.111,3035.4,3035.1,3.41752075]
[1763617089261,0.111,3035.4,3035.3,0.1218]
[1763617090351,0.405504,3035.6,3035.3,0.1218]
[1763617090547,0.111,3035.6,3035.5,2.91595777]
[1763617090957,0.111,3035.6,3035.5,0.1218]
[1763617091128,0.5782,3035.6,3035.2,3.29462441]
[1763617091337,0.5782,3035.6,3035.2,4.23318947]
[1763617091646,0.111,3035.6,3035.2,4.23318947]
[1763617091852,0.111,3035.6,3035.2,7.64966527]
[1763617092042,0.111,3035.6,3035.5,0.1218]
[1763617092446,0.111,3035.6,3035.4,3.29443916]
[1763617093633,0.111,3035.6,3035.3,3.29456725]
[1763617094060,0.111,3035.6,3035.5,0.1218]
[1763617095115,0.111,3035.7,3035.5,0.1218]
[1763617097049,0.111,3035.7,3035.4,3.29445176]
[1763617098155,0.111,3035.7,3035.3,3.29452904]
[1763617098343,0.111,3035.7,3035.3,4.25612373]
[1763617099231,0.111,3035.8,3035.3,7.0502815]
[1763617099436,0.5957,3035.8,3035.3,7.0502815]
[1763617100890,3.4756143,3036.2,3035.3,7.55069098]
[1763617101172,0.4847,3035.7,3035.4,0.7550691]
[1763617103272,0.4847,3035.7,3035.4,4.04945333]
[1763617103856,0.30753919,3035.9,3035.6,0.2315]
[1763617104183,0.30753919,3036.0,3035.6,0.2315]
[1763617104674,0.41853919,3036.0,3035.6,0.2315]
[1763617104846,0.111,3036.0,3035.7,0.30256578]
[1763617105039,0.41853919,3036.0,3035.6,0.2315]
[1763617105245,0.41853919,3036.0,3035.7,3.29413314]
[1763617105443,0.111,3036.0,3035.7,3.29413314]
[1763617107171,0.111,3036.0,3035.9,0.2315]
[1763617107578,0.081,3036.0,3035.9,0.2315]
[1763617107967,0.3074319,3036.2,3035.9,3.52541613]
[1763617108168,0.111,3036.3,3035.9,7.30409193]
[1763617108661,0.111,3036.3,3036.2,0.2315]
[1763617108863,0.30740424,3036.4,3036.2,0.2315]
[1763617108864,0.30740424,3036.4,3036.2,0.2939]
[1763617109060,0.30735543,3036.8,3036.3,3.25715777]
[1763617109259,0.111,3036.7,3036.3,3.25715777]
[1763617109463,0.41835543,3036.7,3036.3,3.25715777]
[1763617109661,0.88665543,3036.7,3036.3,0.2315]
[1763617109846,0.30735543,3036.6,3036.3,0.2315]
[1763617110987,0.5793,3036.7,3036.3,0.2315]
[1763617111819,0.111,3036.7,3036.3,0.2315]
[1763617112122,0.41819772,3036.7,3036.3,0.2315]
[1763617112516,0.88649772,3036.7,3036.3,0.2315]
[1763617112687,0.5793,3036.7,3036.3,6.9804198]
[1763617113087,0.1909,3036.9,3036.6,0.2315]
[1763617113288,0.111,3036.8,3036.6,0.2315]
[1763617113689,0.111,3036.8,3036.6,0.8352419]
[1763617113890,0.111,3036.8,3036.7,0.2315]
[1763617114085,0.111,3036.8,3036.6,0.6037419]
[1763617114331,0.111,3036.8,3036.4,2.93997967]
[1763617114631,0.111,3036.8,3036.4,2.70847967]
[1763617114840,0.111,3036.8,3036.5,3.293241]
[1763617116254,0.111,3036.8,3036.7,0.2315]
[1763617116660,0.90699264,3037.0,3036.7,0.2315]
[1763617117920,1.37089264,3037.0,3036.7,0.2315]
[1763617118417,0.4784,3036.8,3036.4,3.29331883]
[1763617118614,0.4784,3036.8,3036.4,3.98553694]
[1763617118866,0.4639,3036.9,3036.4,7.27891067]
[1763617119067,0.90699264,3037.0,3036.5,3.02565777]
[1763617119366,0.113,3037.1,3036.7,2.79415777]
[1763617120247,0.113,3037.1,3036.7,6.08709967]
[1763617121014,0.5769,3037.1,3036.7,6.08709967]
[1763617122770,0.113,3037.1,3036.7,6.08709967]
[1763617123572,0.113,3037.1,3036.7,9.38014804]
[1763617123736,0.002,3037.1,3037.0,0.2315]
[1763617124624,0.002,3037.1,3037.0,3.52422308]
[1763617125144,0.002,3037.1,3037.0,0.2315]
[1763617125325,0.002,3037.1,3037.0,3.52422308]
[1763617127437,0.002,3037.1,3037.0,7.06588227]
[1763617128256,0.002,3037.1,3037.0,3.77315919]
[1763617128463,0.002,3037.1,3037.0,6.31838085]
[1763617132784,0.002,3037.1,3037.0,3.52422308]
[1763617134301,0.002,3037.1,3037.0,3.75572308]
[1763617134879,0.002,3037.1,3037.0,3.52422308]
[1763617135076,0.002,3037.1,3037.0,6.89547603]
[1763617135258,0.002,3037.1,3037.0,7.68280642]
[1763617135467,0.002,3037.1,3037.0,7.91430642]